bitfinex/quotes_BTCUSD_20241002
["timestamp","ask_amount","ask_price","bid_price","bid_amount"]
[1727907054077,0.41090562,60726.0,60720.0,0.164689]
[1727907054309,0.41090562,60726.0,60717.0,0.357395]
[1727907054310,0.01457056,60723.0,60721.0,0.164686]
[1727907054524,0.164676,60725.0,60721.0,0.164686]
[1727907054727,0.01456283,60722.0,60721.0,0.164686]
[1727907054949,0.164676,60725.0,60721.0,0.164686]
[1727907055187,0.16468,60724.0,60718.0,0.329391]
[1727907055402,0.01457056,60723.0,60721.0,0.164687]
[1727907055618,0.164678,60725.0,60721.0,0.164687]
[1727907055827,0.01458602,60724.0,60717.0,0.014]
[1727907056035,0.17926602,60724.0,60721.0,0.009]
[1727907056249,0.164684,60722.0,60721.0,0.009]
[1727907056459,0.17926502,60724.0,60719.0,0.16469]
[1727907056671,0.01460152,60722.0,60721.0,0.009]
[1727907056885,0.01460924,60723.0,60721.0,0.019]
[1727907057100,0.01460152,60722.0,60721.0,0.009]
[1727907057537,0.02581807,60723.0,60721.0,0.022]
[1727907057752,0.01460152,60722.0,60721.0,0.022]
[1727907058195,0.01460152,60722.0,60721.0,0.013]
[1727907058407,0.17928552,60722.0,60721.0,0.013]
[1727907058621,0.01460152,60722.0,60719.0,0.164692]
[1727907059095,0.17928552,60722.0,60721.0,0.012]
[1727907059285,0.01460152,60722.0,60721.0,0.164687]
[1727907059499,0.01460152,60722.0,60721.0,0.59811762]
[1727907059707,0.01460152,60722.0,60721.0,0.361887]
[1727907059916,0.24623062,60733.0,60722.0,0.023]
[1727907060127,0.24623062,60726.0,60725.0,0.164676]
[1727907060383,0.41088562,60733.0,60724.0,0.329355]
[1727907060618,0.01462848,60731.0,60728.0,0.164667]
[1727907061266,0.32933,60730.0,60721.0,0.1872]
[1727907061491,0.01462848,60731.0,60721.0,0.1872]
[1727907061492,0.164669,60728.0,60723.0,0.164681]
[1727907061731,0.34402976,60729.0,60721.0,0.1872]
[1727907061943,0.01467495,60727.0,60725.0,0.164675]
[1727907062150,0.01468267,60728.0,60725.0,0.178675]
[1727907062368,0.01466723,60726.0,60725.0,0.164675]
[1727907062579,0.01461619,60726.0,60725.0,0.164675]
[1727907062793,0.164668,60729.0,60725.0,0.164675]
[1727907063040,0.17935278,60728.0,60723.0,0.494041]
[1727907063270,0.01468278,60728.0,60725.0,0.01]
[1727907063490,0.01468278,60728.0,60725.0,0.174676]
[1727907063920,0.01468278,60728.0,60725.0,0.188676]
[1727907064144,0.01468278,60728.0,60725.0,0.024]
[1727907064348,0.01468278,60728.0,60727.0,0.164671]
[1727907064569,0.01470599,60728.0,60727.0,0.164671]
[1727907064805,0.19047976,60730.0,60727.0,0.164671]
[1727907065041,0.01471371,60729.0,60727.0,0.164671]
[1727907065991,0.01471371,60729.0,60727.0,0.174671]
[1727907066467,0.01471371,60729.0,60727.0,0.01]
[1727907066679,0.01471371,60729.0,60727.0,0.021]
[1727907066680,0.164668,60728.0,60727.0,0.021]
[1727907066971,0.17938312,60728.0,60727.0,0.021]
[1727907067427,0.27938312,60728.0,60727.0,0.021]
[1727907067656,0.31349937,60728.0,60727.0,0.021]
[1727907067887,0.27938312,60728.0,60727.0,0.021]
[1727907068376,0.27938312,60728.0,60727.0,0.01]
[1727907068609,0.27938312,60728.0,60727.0,0.022]
[1727907068839,0.32815174,60728.0,60727.0,0.022]
[1727907069057,0.32815174,60728.0,60727.0,0.012]
[1727907069058,0.17938312,60728.0,60727.0,0.012]
[1727907069525,0.18038312,60728.0,60727.0,0.023]
[1727907069975,0.18038312,60728.0,60727.0,0.012]
[1727907070193,0.18638312,60728.0,60727.0,0.012]
[1727907070675,0.18038312,60728.0,60727.0,0.012]
[1727907070875,0.18038312,60728.0,60727.0,0.013]
[1727907071358,0.17938312,60728.0,60727.0,0.001]
[1727907071575,0.18038312,60728.0,60727.0,0.001]
[1727907072040,0.18038312,60728.0,60727.0,0.006]
[1727907072260,0.18038312,60728.0,60727.0,0.005]
[1727907072490,0.18038312,60728.0,60727.0,0.009]
[1727907072707,0.18038312,60728.0,60727.0,0.004]
[1727907072708,0.17938312,60728.0,60727.0,0.004]
[1727907072936,0.164684,60722.0,60721.0,0.000816]
[1727907073387,0.17931402,60722.0,60721.0,0.000816]
[1727907073599,0.20513285,60722.0,60721.0,0.000816]
[1727907074256,0.20513285,60722.0,60721.0,0.011816]
[1727907075882,0.20513285,60722.0,60721.0,0.023816]
[1727907076312,0.04044885,60722.0,60721.0,0.023816]
[1727907076578,0.04044885,60722.0,60721.0,0.363103]
[1727907076820,0.04044885,60722.0,60721.0,0.386103]
[1727907076821,0.02581883,60722.0,60721.0,0.386103]
[1727907077038,0.24623062,60731.0,60728.0,0.164667]
[1727907077276,0.164664,60730.0,60726.0,0.164672]
[1727907077506,0.01468264,60730.0,60729.0,0.164665]
[1727907078908,0.01468264,60730.0,60727.0,0.16467]
[1727907079118,0.01468264,60730.0,60729.0,0.014]
[1727907079341,0.01468264,60730.0,60729.0,0.027]
[1727907079555,0.01468264,60730.0,60729.0,0.191665]
[1727907079779,0.01468264,60730.0,60729.0,0.177665]
[1727907081708,0.01468264,60730.0,60729.0,0.178665]
[1727907081919,0.01468264,60730.0,60729.0,0.164665]
[1727907082190,0.01468264,60730.0,60729.0,0.192665]
[1727907082428,0.001632,60732.0,60729.0,0.192665]
[1727907082429,0.001632,60732.0,60731.0,0.13]
[1727907082659,0.001632,60732.0,60731.0,0.46113917]
[1727907082887,0.001632,60732.0,60731.0,0.63404671]
[1727907083545,0.001632,60732.0,60731.0,0.82178208]
[1727907084839,0.001632,60732.0,60731.0,0.83578208]
[1727907085048,0.001632,60732.0,60731.0,0.82178208]
[1727907085258,0.001632,60732.0,60731.0,0.85178208]
[1727907085686,0.001632,60732.0,60731.0,0.93162244]
[1727907086368,0.001632,60732.0,60731.0,0.37086]
[1727907087453,0.001632,60732.0,60731.0,0.52004671]
[1727907087890,0.001632,60732.0,60731.0,0.54304671]
[1727907088324,0.001632,60732.0,60731.0,0.55704671]
[1727907088573,0.001632,60732.0,60731.0,0.54304671]
[1727907088794,0.001632,60732.0,60731.0,0.54504671]
[1727907089255,0.001632,60732.0,60731.0,0.53104671]
[1727907089475,0.001632,60732.0,60731.0,0.55904671]
[1727907089708,0.001632,60732.0,60731.0,0.39586]
[1727907089940,0.001632,60732.0,60731.0,0.37086]
[1727907090830,0.001632,60732.0,60731.0,0.16466]
[1727907091081,0.166289,60732.0,60731.0,0.028]
[1727907091309,0.19210124,60732.0,60731.0,0.014]
[1727907091545,0.04013927,60732.0,60731.0,0.014]
[1727907091777,0.53411327,60732.0,60731.0,0.014]
[1727907092008,0.53411327,60732.0,60731.0,0.028]
[1727907092477,0.53411327,60732.0,60721.0,0.094816]
[1727907092478,0.164684,60722.0,60721.0,0.000816]
[1727907092942,0.17732688,60722.0,60721.0,0.000816]
[1727907093176,0.20314739,60722.0,60721.0,0.000816]
[1727907093641,0.30314739,60722.0,60721.0,0.000816]
[1727907093866,0.27732688,60722.0,60721.0,0.000816]
[1727907094307,0.70920965,60722.0,60701.0,0.000817]
[1727907094541,0.64425404,60716.0,60705.0,0.24623062]
[1727907095005,0.27727524,60716.0,60705.0,0.24623062]
[1727907095452,0.27727524,60716.0,60706.0,0.164725]
[1727907095677,0.27727524,60716.0,60707.0,0.164724]
[1727907095902,0.28327524,60716.0,60715.0,0.002816]
[1727907096622,0.28027524,60716.0,60715.0,0.001816]
[1727907097044,0.30309966,60716.0,60715.0,0.000816]
[1727907097521,0.30309966,60716.0,60715.0,0.005816]
[1727907097969,0.30309966,60716.0,60715.0,0.006816]
[1727907098187,0.30309966,60716.0,60715.0,0.001816]
[1727907098402,0.27727524,60716.0,60715.0,0.001816]
[1727907098854,0.27727524,60716.0,60715.0,0.000816]
[1727907099084,0.28027524,60716.0,60715.0,0.000816]
[1727907099526,0.28027524,60716.0,60715.0,0.003816]
[1727907100001,0.27727524,60716.0,60715.0,0.003816]
[1727907100229,0.27727524,60716.0,60715.0,0.005816]
[1727907100891,0.27727524,60716.0,60715.0,0.003816]
[1727907101339,0.30309966,60716.0,60715.0,0.006816]
[1727907101565,0.30509966,60716.0,60715.0,0.006816]
[1727907102012,0.03839866,60716.0,60715.0,0.171519]
[1727907102230,0.03839866,60716.0,60715.0,0.006816]
[1727907102452,0.20309966,60716.0,60715.0,0.007816]
[1727907103315,0.20309966,60716.0,60715.0,0.008816]
[1727907103993,0.17727524,60716.0,60715.0,0.007816]
[1727907104421,0.17727524,60716.0,60715.0,0.005816]
[1727907104643,0.17727524,60716.0,60715.0,0.011816]
[1727907105820,0.20309672,60716.0,60715.0,0.011816]
[1727907112858,0.4910349,60716.0,60715.0,0.011816]
[1727907113126,0.30309672,60716.0,60715.0,0.011816]
[1727907113614,0.30309672,60716.0,60715.0,0.006816]
[1727907113862,0.30309672,60716.0,60715.0,0.001816]
[1727907114107,0.30309672,60716.0,60715.0,0.002816]
[1727907114369,0.5699349,60716.0,60715.0,0.000816]
[1727907114774,0.266739,60702.0,60701.0,0.000817]
[1727907114780,0.264747,60699.0,60698.0,0.24623062]
[1727907114993,0.77326501,60699.0,60698.0,0.24623062]
[1727907115254,0.77326501,60699.0,60681.0,0.0002]
[1727907115255,0.164785,60685.0,60681.0,0.0002]
[1727907115438,0.46969901,60685.0,60681.0,0.0002]
[1727907115645,0.65840528,60685.0,60681.0,0.0002]
[1727907115862,0.26479,60683.0,60681.0,0.0002]
[1727907116089,0.27701099,60683.0,60681.0,0.0002]
[1727907116944,0.27701099,60683.0,60657.0,0.16486]
[1727907116945,0.1057,60682.0,60641.0,0.0002]
[1727907116951,0.1057,60682.0,60646.0,0.24623062]
[1727907116952,0.164888,60647.0,60646.0,0.24623062]
[1727907116959,0.164888,60647.0,60644.0,0.0001]
[1727907116960,0.264894,60645.0,60644.0,0.0001]
[1727907117183,0.28186983,60645.0,60644.0,0.0001]
[1727907117539,0.29488393,60645.0,60644.0,0.0001]
[1727907118392,0.57729883,60645.0,60644.0,0.0001]
[1727907119112,0.6648298,60633.0,60621.0,0.0162736]
[1727907119121,0.6648298,60633.0,60610.0,0.0001069]
[1727907119122,0.164986,60611.0,60610.0,0.0001069]
[1727907119407,0.164986,60611.0,60608.0,0.24623062]
[1727907119408,0.264991,60609.0,60608.0,0.24623062]
[1727907119649,0.31018666,60609.0,60608.0,0.22832697]
[1727907119897,0.31018666,60609.0,60601.0,0.24643062]
[1727907119898,0.165011,60602.0,60601.0,0.24643062]
[1727907120173,0.56440173,60602.0,60601.0,0.24643062]
[1727907120434,0.62892685,60602.0,60601.0,0.0002]
[1727907120678,0.91030469,60602.0,60601.0,0.0002]
[1727907120982,0.34347489,60602.0,60601.0,0.0002]
[1727907121276,0.31562228,60602.0,60601.0,0.0002]
[1727907121524,0.0592006,60602.0,60601.0,0.0002]
[1727907122409,0.0652006,60602.0,60601.0,0.0002]
[1727907122875,0.0652006,60602.0,60601.0,0.165213]
[1727907122877,0.41118162,60624.0,60606.0,0.002]
[1727907123172,0.24623062,60610.0,60609.0,0.187991]
[1727907123409,0.24623062,60624.0,60610.0,0.023]
[1727907123673,0.24623062,60624.0,60615.0,0.164974]
[1727907123926,0.24623062,60624.0,60617.0,0.164969]
[1727907124196,0.24623062,60624.0,60615.0,0.023]
[1727907124197,0.24623062,60624.0,60615.0,0.187974]
[1727907124723,0.24623062,60624.0,60615.0,0.023]
[1727907124724,0.001,60617.0,60615.0,0.187974]
[1727907124988,0.24623062,60632.0,60618.0,0.329933]
[1727907124989,0.002,60630.0,60618.0,0.329933]
[1727907125251,0.24623062,60623.0,60617.0,0.023]
[1727907125518,0.001,60624.0,60617.0,0.023]
[1727907126057,0.001,60624.0,60616.0,0.57617362]
[1727907126058,0.001,60624.0,60623.0,0.023]
[1727907126463,0.001,60624.0,60621.0,0.023]
[1727907126464,0.003,60624.0,60621.0,0.023]
[1727907126468,0.001,60624.0,60621.0,0.023]
[1727907126695,0.001,60624.0,60623.0,0.187953]
[1727907126696,0.002,60624.0,60623.0,0.187953]
[1727907126916,0.001,60624.0,60623.0,0.187953]
[1727907127165,0.24623062,60630.0,60624.0,0.023]
[1727907127582,0.002,60633.0,60622.0,0.329912]
[1727907127807,0.24623062,60632.0,60625.0,0.023]
[1727907128027,0.002,60633.0,60624.0,0.26923062]
[1727907128236,0.002,60635.0,60628.0,0.32988]
[1727907128485,0.001,60630.0,60624.0,0.03]
[1727907128696,0.001,60630.0,60629.0,0.187937]
[1727907129166,0.001,60630.0,60629.0,0.264337]
[1727907129887,0.002,60649.0,60630.0,0.023]
[1727907130093,0.002,60652.0,60645.0,0.164892]
[1727907130357,0.24623062,60655.0,60631.0,0.16318671]
[1727907130358,0.24823062,60648.0,60631.0,0.43591141]
[1727907130585,0.1649,60643.0,60630.0,0.023]
[1727907130814,0.002,60632.0,60630.0,0.023]
[1727907131033,0.002,60637.0,60630.0,0.023]
[1727907131337,0.24623062,60648.0,60630.0,0.023]
[1727907131338,0.1,60642.0,60630.0,0.036]
[1727907131615,0.002,60646.0,60630.0,0.023]
[1727907131889,0.02585344,60642.0,60641.0,0.164904]
[1727907132185,0.02585344,60642.0,60641.0,0.187904]
[1727907133179,0.02585344,60642.0,60641.0,0.63781541]
[1727907134206,0.24623062,60655.0,60651.0,0.164877]
[1727907134477,0.24623062,60655.0,60650.0,0.023]
[1727907134718,0.90563262,60662.0,60654.0,0.164869]
[1727907134719,0.1,60659.0,60654.0,0.164869]
[1727907134998,0.1,60659.0,60654.0,0.329738]
[1727907135517,0.002,60667.0,60657.0,0.023]
[1727907135781,0.33171,60660.0,60651.0,0.003]
[1727907136062,0.24623062,60664.0,60642.0,0.0964]
[1727907136063,0.164873,60653.0,60649.0,0.24623062]
[1727907136382,0.002,60654.0,60651.0,0.164876]
[1727907136609,0.164867,60655.0,60650.0,0.023]
[1727907136853,0.164867,60655.0,60649.0,0.18788]
[1727907137102,0.164867,60655.0,60651.0,0.002]
[1727907137718,0.02584753,60656.0,60654.0,0.24623062]
[1727907137878,0.02584753,60656.0,60651.0,0.002]
[1727907137879,0.02584753,60656.0,60655.0,0.187866]
[1727907138114,0.02584753,60656.0,60652.0,0.329749]
[1727907138353,0.02584753,60656.0,60653.0,0.164871]
[1727907138615,0.02784753,60656.0,60652.0,0.164874]
[1727907139136,0.02584753,60656.0,60651.0,0.023]
[1727907139392,0.02584753,60656.0,60654.0,0.164869]
[1727907139926,0.1,60665.0,60656.0,0.023]
[1727907140165,0.002,60670.0,60656.0,0.023]
[1727907140166,0.164835,60667.0,60662.0,0.164847]
[1727907140458,0.002,60664.0,60659.0,0.023]
[1727907140727,0.002,60664.0,60655.0,0.0794]
[1727907140983,0.16486,60658.0,60655.0,0.0794]
[1727907141250,0.002,60664.0,60656.0,0.013]
[1727907141490,0.102,60666.0,60662.0,0.164846]
[1727907141724,0.02584494,60663.0,60662.0,0.164845]
[1727907142011,0.02584494,60663.0,60660.0,0.164852]
[1727907142265,0.02584494,60663.0,60662.0,0.164847]
[1727907142535,0.02584494,60663.0,60660.0,0.164851]
[1727907142803,0.02584494,60663.0,60659.0,0.008]
[1727907143030,0.02584494,60663.0,60657.0,0.023]
[1727907143292,0.19068994,60663.0,60660.0,0.014]
[1727907143561,0.02584494,60663.0,60662.0,0.014]
[1727907144042,0.002,60666.0,60662.0,0.014]
[1727907144043,0.002,60666.0,60663.0,0.164844]
[1727907144285,0.329634,60674.0,60662.0,0.014]
[1727907144286,0.1,60669.0,60662.0,0.014]
[1727907144536,0.002,60673.0,60662.0,0.014]
[1727907144537,0.102,60673.0,60663.0,0.329689]
[1727907144796,0.102,60673.0,60662.0,0.014]
[1727907144797,0.264827,60670.0,60662.0,0.014]
[1727907145062,0.1,60670.0,60664.0,0.329683]
[1727907145326,0.1,60670.0,60666.0,0.164835]
[1727907145591,0.135165,60666.0,60665.0,0.164839]
[1727907145831,0.001636,60663.0,60662.0,0.49454]
[1727907147030,0.001636,60663.0,60662.0,0.53154]
[1727907148049,0.001636,60663.0,60662.0,0.91253926]
[1727907148325,0.001636,60663.0,60662.0,0.64414]
[1727907151073,0.001636,60663.0,60662.0,0.80732671]
[1727907151355,0.135165,60666.0,60665.0,0.192839]
[1727907151629,0.135165,60666.0,60665.0,0.35602571]
[1727907152128,0.135165,60666.0,60665.0,0.43872571]
[1727907152374,0.24623062,60689.0,60665.0,0.43872571]
[1727907152375,0.24623062,60689.0,60688.0,0.187777]
[1727907152847,0.02583488,60690.0,60689.0,0.187774]
[1727907153085,0.02583488,60690.0,60689.0,0.2050656]
[1727907153550,0.02583488,60690.0,60689.0,0.187774]
[1727907154100,0.001636,60691.0,60690.0,0.164771]
[1727907154362,0.001636,60691.0,60690.0,0.187771]
[1727907154638,0.001636,60691.0,60690.0,0.19106592]
[1727907154896,0.001636,60691.0,60690.0,0.187771]
[1727907155404,0.001636,60691.0,60689.0,0.014]
[1727907155405,0.164771,60690.0,60689.0,0.014]
[1727907155665,0.331175,60691.0,60689.0,0.014]
[1727907155666,0.001636,60691.0,60689.0,0.014]
[1727907155909,0.166405,60691.0,60690.0,0.014]
[1727907156175,0.168405,60691.0,60690.0,0.014]
[1727907156469,0.168405,60691.0,60679.0,0.3296]
[1727907156470,0.1,60689.0,60683.0,0.24623062]
[1727907156676,0.1,60690.0,60683.0,0.24623062]
[1727907156677,0.164788,60684.0,60683.0,0.24623062]
[1727907157021,0.329554,60689.0,60683.0,0.24623062]
[1727907157254,0.003636,60691.0,60690.0,0.164771]
[1727907157255,0.001636,60691.0,60690.0,0.164771]
[1727907157491,0.001636,60691.0,60690.0,0.014]
[1727907157492,0.166405,60691.0,60690.0,0.014]
[1727907157746,0.51263562,60691.0,60690.0,0.014]
[1727907158033,0.266405,60691.0,60690.0,0.014]
[1727907158507,0.266405,60691.0,60682.0,0.164791]
[1727907158508,0.16478,60687.0,60682.0,0.164791]
[1727907158745,0.164777,60688.0,60684.0,0.164787]
[1727907159045,0.24623062,60689.0,60673.0,0.24623062]
[1727907159275,0.164791,60683.0,60681.0,0.24623062]
[1727907159509,0.329556,60688.0,60683.0,0.16479]
[1727907159749,0.164784,60686.0,60682.0,0.164792]
[1727907159991,0.164784,60686.0,60680.0,0.329594]
[1727907159992,0.001636,60691.0,60689.0,0.164773]
[1727907160228,0.164772,60690.0,60686.0,0.16478]
[1727907160467,0.164772,60690.0,60684.0,0.015]
[1727907160468,0.164782,60686.0,60684.0,0.015]
[1727907160705,0.166785,60685.0,60684.0,0.038]
[1727907160955,0.166785,60685.0,60684.0,0.035]
[1727907161221,0.166785,60685.0,60684.0,0.023]
[1727907161466,0.002,60684.0,60681.0,0.014]
[1727907161721,0.164793,60682.0,60681.0,0.014]
[1727907162013,0.329582,60683.0,60678.0,0.164804]
[1727907162262,0.164794,60682.0,60678.0,0.164804]
[1727907162508,0.164794,60682.0,60679.0,0.164801]
[1727907163255,0.164794,60682.0,60675.0,0.352621]
[1727907163256,0.02583473,60685.0,60684.0,0.164788]
[1727907163523,0.02583473,60685.0,60684.0,0.187788]
[1727907163778,0.001636,60691.0,60690.0,0.164771]
[1727907164026,0.24786662,60691.0,60689.0,0.164773]
[1727907164254,0.001636,60691.0,60689.0,0.164773]
[1727907164745,0.001636,60691.0,60688.0,0.023]
[1727907164935,0.001636,60691.0,60688.0,0.187775]
[1727907165256,0.001636,60691.0,60686.0,0.023]
[1727907165491,0.329544,60690.0,60684.0,0.24623062]
[1727907165735,0.001636,60691.0,60684.0,0.24623062]
[1727907165981,0.331174,60691.0,60686.0,0.164781]
[1727907166220,0.331174,60691.0,60684.0,0.57580162]
[1727907166221,0.001636,60691.0,60684.0,0.24623062]
[1727907166466,0.001636,60691.0,60690.0,0.164771]
[1727907166704,0.001636,60691.0,60689.0,0.329549]
[1727907166931,0.001636,60691.0,60689.0,0.164774]
[1727907167163,0.001636,60691.0,60688.0,0.009]
[1727907167164,0.001636,60691.0,60688.0,0.173777]
[1727907167901,0.001636,60691.0,60690.0,0.164771]
[1727907168183,0.002,60690.0,60689.0,0.014]
[1727907168427,0.166771,60690.0,60689.0,0.014]
[1727907168969,0.266774,60689.0,60688.0,0.028]
[1727907169217,0.266774,60689.0,60688.0,0.014]
[1727907169520,0.266774,60689.0,60665.0,0.24623062]
[1727907169521,0.166815,60674.0,60665.0,0.41106762]
[1727907169751,0.166815,60674.0,60665.0,0.24623062]
[1727907170224,0.329642,60672.0,60665.0,0.24623062]
[1727907170467,0.329642,60672.0,60666.0,0.164836]
[1727907170710,0.164831,60668.0,60665.0,0.24623062]
[1727907170949,0.18164139,60667.0,60663.0,0.164842]
[1727907171181,0.18164139,60667.0,60663.0,0.24623062]
[1727907171182,0.16484,60665.0,60663.0,0.24623062]
[1727907171417,0.01680539,60664.0,60663.0,0.24623062]
[1727907171662,0.01680539,60664.0,60662.0,0.165664]
[1727907171911,0.164845,60663.0,60662.0,0.000817]
[1727907172155,0.18165333,60663.0,60662.0,0.000817]
[1727907172389,0.28165333,60663.0,60662.0,0.000817]
[1727907173108,0.28165333,60663.0,60662.0,0.012817]
[1727907174077,0.28165333,60663.0,60662.0,0.019817]
[1727907174337,0.28165333,60663.0,60662.0,0.007817]
[1727907174573,0.28165333,60663.0,60662.0,0.015817]
[1727907175060,0.264845,60663.0,60662.0,0.015817]
[1727907175322,0.28368221,60663.0,60662.0,0.015817]
[1727907175632,0.28367556,60663.0,60662.0,0.015817]
[1727907175851,0.38764518,60663.0,60662.0,0.015817]
[1727907176077,0.54927426,60652.0,60651.0,0.24623062]
[1727907176360,0.28370556,60652.0,60651.0,0.24623062]
[1727907176578,0.01683056,60652.0,60644.0,0.24623062]
[1727907176862,0.01683056,60652.0,60637.0,0.24623062]
[1727907176863,0.329762,60650.0,60637.0,0.24623062]
[1727907177098,0.164908,60640.0,60637.0,0.24623062]
[1727907177333,0.01683056,60639.0,60637.0,0.24623062]
[1727907177605,0.01683056,60638.0,60629.0,0.329873]
[1727907177854,0.01883056,60638.0,60634.0,0.164921]
[1727907178111,0.01710467,60637.0,60633.0,0.244425]
[1727907178369,0.164923,60634.0,60630.0,0.000818]
[1727907178602,0.164932,60631.0,60630.0,0.000818]
[1727907178829,0.01710467,60631.0,60630.0,0.24704862]
[1727907179057,0.01710467,60631.0,60630.0,0.165752]
[1727907179300,0.002,60638.0,60630.0,0.000818]
[1727907179539,0.24623062,60639.0,60630.0,0.000818]
[1727907179540,0.04301058,60637.0,60636.0,0.164918]
[1727907179810,0.002,60639.0,60633.0,0.61225026]
[1727907180034,0.002,60639.0,60630.0,0.000818]
[1727907180035,0.164932,60631.0,60630.0,0.000818]
[1727907180270,0.18221558,60631.0,60630.0,0.000818]
[1727907180522,0.01727924,60631.0,60630.0,0.000818]
[1727907181058,0.01727913,60631.0,60630.0,0.000818]
[1727907181313,0.02585709,60632.0,60631.0,0.164932]
[1727907181562,0.02585709,60632.0,60631.0,0.187932]
[1727907181900,0.02585709,60632.0,60630.0,0.000818]
[1727907181901,0.165932,60631.0,60630.0,0.013818]
[1727907182182,0.166932,60631.0,60630.0,0.022818]
[1727907182473,0.56855913,60631.0,60630.0,0.022818]
[1727907182974,0.28615987,60631.0,60630.0,0.022818]
[1727907183285,0.267932,60631.0,60630.0,0.009818]
[1727907183553,0.001,60631.0,60630.0,0.174752]
[1727907183784,0.001,60631.0,60630.0,0.197752]
[1727907184302,0.001,60631.0,60630.0,0.203752]
[1727907184807,0.001,60632.0,60631.0,0.187932]
[1727907185769,0.02585458,60638.0,60633.0,0.023]
[1727907186025,0.02585458,60638.0,60635.0,0.187921]
[1727907186270,0.02585458,60638.0,60635.0,0.023]
[1727907187234,0.164932,60631.0,60630.0,0.000818]
[1727907187467,0.164932,60631.0,60630.0,0.24704862]
[1727907187717,0.18400119,60631.0,60630.0,0.000818]
[1727907187957,0.2098606,60631.0,60630.0,0.000818]
[1727907188731,0.2098606,60631.0,60630.0,0.005818]
[1727907189453,0.002,60623.0,60602.0,0.24623062]
[1727907189716,0.1,60630.0,60615.0,0.24623062]
[1727907189717,0.166972,60616.0,60615.0,0.24623062]
[1727907190004,0.166972,60616.0,60601.0,0.001017]
[1727907190005,0.165011,60602.0,60601.0,0.001017]
[1727907190240,0.167011,60602.0,60601.0,0.001017]
[1727907190712,0.165011,60602.0,60601.0,0.001017]
[1727907191216,0.002,60606.0,60601.0,0.001017]
[1727907191442,0.27210126,60602.0,60601.0,0.001017]
[1727907191672,0.02587064,60602.0,60601.0,0.001017]
[1727907191907,0.02687064,60602.0,60601.0,0.18003]
[1727907192153,0.02587064,60602.0,60601.0,0.16603]
[1727907192448,0.02687064,60602.0,60601.0,0.18903]
[1727907192689,0.02687064,60602.0,60601.0,0.28342987]
[1727907192911,0.001,60602.0,60601.0,0.28013]
[1727907193192,0.001,60602.0,60601.0,0.28342966]
[1727907193423,0.24623062,60619.0,60618.0,0.187967]
[1727907193647,0.331838,60636.0,60622.0,0.329913]
[1727907193883,0.24623062,60637.0,60628.0,0.18794]
[1727907194370,0.24623062,60637.0,60628.0,0.19123859]
[1727907194598,0.24623062,60637.0,60628.0,0.18794]
[1727907194857,0.24623062,60637.0,60633.0,0.023]
[1727907195092,0.24623062,60637.0,60634.0,0.164923]
[1727907195333,0.24823062,60637.0,60634.0,0.164923]
[1727907195589,0.002,60637.0,60634.0,0.164923]
[1727907195822,0.002,60637.0,60633.0,0.023]
[1727907195823,0.002,60637.0,60633.0,0.164924]
[1727907196080,0.003,60637.0,60634.0,0.164923]
[1727907196576,0.164923,60634.0,60633.0,0.012]
[1727907196823,0.18173762,60634.0,60633.0,0.012]
[1727907197325,0.329883,60628.0,60621.0,0.24623062]
[1727907197558,0.331902,60624.0,60621.0,0.24623062]
[1727907197781,0.331889,60627.0,60621.0,0.24623062]
[1727907198016,0.3557631,60624.0,60616.0,0.329943]
[1727907198246,0.164957,60622.0,60617.0,0.164968]
[1727907198488,0.166964,60620.0,60615.0,0.164974]
[1727907198762,0.329915,60622.0,60610.0,0.0787]
[1727907198984,0.002,60623.0,60610.0,0.0787]
[1727907198985,0.164961,60621.0,60616.0,0.164972]
[1727907199225,0.329907,60623.0,60621.0,0.002]
[1727907199465,0.18177645,60622.0,60621.0,0.002]
[1727907199956,0.01682045,60622.0,60621.0,0.002]
[1727907200170,0.18177645,60622.0,60621.0,0.002]
[1727907200402,0.18377645,60622.0,60621.0,0.002]
[1727907200644,0.18377645,60622.0,60613.0,0.24623062]
[1727907200645,0.01682045,60622.0,60613.0,0.24623062]
[1727907200877,0.01682045,60621.0,60618.0,0.164966]
[1727907201120,0.01682045,60620.0,60618.0,0.164966]
[1727907201420,0.01682045,60619.0,60618.0,0.164966]
[1727907202150,0.01682045,60619.0,60618.0,0.178966]
[1727907202383,0.01682045,60619.0,60618.0,0.192966]
[1727907202661,0.0258601,60624.0,60623.0,0.164953]
[1727907202870,0.04274848,60624.0,60623.0,0.187953]
[1727907203124,0.0258601,60624.0,60623.0,0.63353897]
[1727907203368,0.24623062,60638.0,60637.0,0.164915]
[1727907203606,0.263052,60638.0,60637.0,0.164915]
[1727907203853,0.01682138,60638.0,60637.0,0.164915]
[1727907204095,0.04267568,60638.0,60637.0,0.164915]
[1727907204586,0.04267269,60638.0,60637.0,0.164915]
[1727907205064,0.04267269,60638.0,60637.0,0.184915]
[1727907206826,0.04267269,60638.0,60637.0,0.02]
[1727907207062,0.04267269,60638.0,60637.0,0.184915]
[1727907207555,0.04267269,60638.0,60637.0,0.02]
[1727907207831,0.04430869,60638.0,60637.0,0.184915]
[1727907209546,0.0274903,60638.0,60637.0,0.184915]
[1727907209780,0.0274903,60638.0,60637.0,0.02]
[1727907209781,0.20923039,60638.0,60637.0,0.02]
[1727907210067,0.31123039,60638.0,60637.0,0.02]
[1727907210889,0.31123039,60638.0,60627.0,0.24623062]
[1727907210890,0.16494,60628.0,60627.0,0.24623062]
[1727907211342,0.266959,60621.0,60620.0,0.24623062]
[1727907211546,0.56618535,60621.0,60620.0,0.24623062]
[1727907211964,0.56618535,60621.0,60608.0,0.164992]
[1727907211965,0.266978,60614.0,60608.0,0.164992]
[1727907212170,0.01682709,60614.0,60608.0,0.329984]
[1727907212381,0.01682709,60614.0,60611.0,0.329972]